fUST/lending_fUST_20250923
["ID","MTS","AMOUNT","RATE_DAILY","PERIOD"]
[387190330,1758627048674,-433.81935211,0.00019178,2]
[387190331,1758627048684,-480.0,0.00019178,2]
[387190332,1758627048694,-151.0,0.00019178,2]
[387190333,1758627048704,-480.0,0.00019178,2]
[387190334,1758627048716,-151.0,0.00019178,2]
[387190335,1758627048727,-480.0,0.00019178,2]
[387190336,1758627048738,-602.44551467,0.00019178,2]
[387190337,1758627048748,-480.0,0.00019178,2]
[387190338,1758627048758,-480.0,0.00019178,2]
[387190339,1758627048769,-480.0,0.00019178,2]
[387190340,1758627048780,-856.96,0.00019178,2]
[387190341,1758627048790,-480.0,0.00019178,2]
[387190342,1758627048800,-2109.51,0.00019178,2]
[387190343,1758627048810,-615.79,0.00019178,2]
[387190344,1758627048822,-480.0,0.00019178,2]
[387190345,1758627048831,-480.0,0.00019178,2]
[387190346,1758627048841,-480.0,0.00019178,2]
[387190347,1758627048852,-480.0,0.00019178,2]
[387190348,1758627048862,-480.0,0.00019178,2]
[387190349,1758627048873,-493.37713343,0.00019178,2]
[387190350,1758627048884,-480.0,0.00019178,2]
[387190351,1758627048896,-480.0,0.00019178,2]
[387190352,1758627048907,-480.0,0.00019178,2]
[387190353,1758627048918,-480.0,0.00019178,2]
[387190354,1758627048929,-480.0,0.00019178,2]
[387190355,1758627048942,-480.0,0.00019178,2]
[387190356,1758627048952,-480.0,0.00019178,2]
[387190357,1758627048962,-480.0,0.00019178,2]
[387190358,1758627048975,-710.11,0.00019178,2]
[387190359,1758627048986,-480.0,0.00019178,2]
[387190360,1758627048996,-480.0,0.00019178,2]
[387190361,1758627049007,-480.0,0.00019178,2]
[387190362,1758627049018,-480.0,0.00019178,2]
[387190363,1758627049028,-432.13911121,0.00019178,2]
[387190364,1758627049039,-480.0,0.00019178,2]
[387190365,1758627049049,-480.0,0.00019178,2]
[387190366,1758627049059,-491.49768794,0.00019178,2]
[387190367,1758627049069,-584.24,0.00019178,2]
[387190368,1758627049079,-480.0,0.00019178,2]
[387190369,1758627049088,-480.0,0.00019178,2]
[387190370,1758627049098,-480.0,0.00019178,2]
[387190371,1758627049107,-480.0,0.00019178,2]
[387190372,1758627049118,-480.0,0.00019178,2]
[387190373,1758627049127,-480.0,0.00019178,2]
[387190374,1758627049138,-227.527057,0.00019178,2]
[387190375,1758627049149,-480.0,0.00019178,2]
[387190376,1758627049159,-941.36,0.00019178,2]
[387190377,1758627049169,-480.0,0.00019178,2]
[387190378,1758627049180,-480.0,0.00019178,2]
[387190379,1758627049189,-480.0,0.00019178,2]
[387190380,1758627049200,-480.0,0.00019178,2]
[387190381,1758627049210,-480.0,0.00019178,2]
[387190382,1758627049221,-480.0,0.00019178,2]
[387190383,1758627049231,-480.0,0.00019178,2]
[387190384,1758627049241,-151.0,0.00019178,2]
[387190385,1758627049251,-151.0,0.00019178,2]
[387190386,1758627049262,-975.68,0.00019178,2]
[387190387,1758627049272,-480.0,0.00019178,2]
[387190388,1758627049282,-480.0,0.00019178,2]
[387190389,1758627049292,-691.9,0.00019178,2]
[387190390,1758627049302,-681.91,0.00019178,2]
[387190391,1758627049313,-513.304917,0.00019178,2]
[387190392,1758627049323,-513.304917,0.00019178,2]
[387190393,1758627049334,-513.304917,0.00019178,2]
[387190394,1758627049345,-513.304917,0.00019178,2]
[387190395,1758627049356,-151.0,0.00019178,2]
[387190396,1758627049366,-151.0,0.00019178,2]
[387190397,1758627049377,-513.304917,0.00019178,2]
[387190398,1758627049387,-513.304917,0.00019178,2]
[387190399,1758627049398,-151.0,0.00019178,2]
[387190400,1758627049408,-151.0,0.00019178,2]
[387190401,1758627049418,-151.0,0.00019178,2]
[387190402,1758627049429,-151.0,0.00019178,2]
[387190403,1758627049439,-480.0,0.00019178,2]
[387190404,1758627049450,-480.0,0.00019178,2]
[387190405,1758627049461,-513.304917,0.00019178,2]
[387190406,1758627049473,-513.304917,0.00019178,2]
[387190407,1758627049483,-480.0,0.00019178,2]
[387190408,1758627049494,-480.0,0.00019178,2]
[387190409,1758627049504,-480.0,0.00019178,2]
[387190410,1758627049514,-480.0,0.00019178,2]
[387190411,1758627049526,-737.42,0.00019178,2]
[387190412,1758627049536,-480.0,0.00019178,2]
[387190413,1758627049546,-480.0,0.00019178,2]
[387190414,1758627049556,-480.0,0.00019178,2]
[387190415,1758627049567,-351.87513494,0.00019178,2]
[387190416,1758627049577,-480.0,0.00019178,2]
[387190417,1758627049587,-480.0,0.00019178,2]
[387190418,1758627049596,-480.0,0.00019178,2]
[387190419,1758627049607,-151.0,0.00019178,2]
[387190420,1758627049617,-252.916333,0.00019178,2]
[387190421,1758627049627,-480.0,0.00019178,2]
[387190422,1758627049637,-480.0,0.00019178,2]
[387190423,1758627049647,-480.0,0.00019178,2]
[387190424,1758627049658,-480.0,0.00019178,2]
[387190425,1758627049668,-1141.55,0.00019178,2]
[387190426,1758627049678,-2046.61,0.00019178,2]
[387190427,1758627049689,-485.72958789,0.00019178,2]
[387190428,1758627049698,-480.0,0.00019178,2]
[387190429,1758627049708,-775.81,0.00019178,2]
[387190430,1758627049718,-480.0,0.00019178,2]
[387190431,1758627049730,-496.53360599,0.00019178,2]
[387190432,1758627049740,-151.0,0.00019178,2]
[387190433,1758627049749,-151.0,0.00019178,2]
[387190434,1758627049759,-151.0,0.00019178,2]
[387190435,1758627049770,-151.0,0.00019178,2]
[387190436,1758627049780,-151.0,0.00019178,2]
[387190437,1758627049790,-480.0,0.00019178,2]
[387190438,1758627049802,-151.0,0.00019178,2]
[387190439,1758627049813,-172.812897,0.00019178,2]
[387190440,1758627049824,-480.0,0.00019178,2]
[387190441,1758627049834,-480.0,0.00019178,2]
[387190442,1758627049844,-480.0,0.00019178,2]
[387190443,1758627049855,-480.0,0.00019178,2]
[387190444,1758627049865,-569.6884864,0.00019178,2]
[387190445,1758627049875,-480.0,0.00019178,2]
[387190446,1758627049886,-2630.34,0.00019178,2]
[387190447,1758627049901,-480.0,0.00019178,2]
[387190448,1758627049914,-480.0,0.00019178,2]
[387190449,1758627049924,-418.43094397,0.00019178,2]
[387190450,1758627049934,-993.8,0.00019178,2]
[387190451,1758627049945,-480.0,0.00019178,2]
[387190452,1758627049956,-151.0,0.00019178,2]
[387190453,1758627049966,-151.0,0.00019178,2]
[387190454,1758627049976,-151.0,0.00019178,2]
[387190455,1758627049987,-710.79,0.00019178,2]
[387190456,1758627049998,-480.0,0.00019178,2]
[387190457,1758627050009,-151.0,0.00019178,2]
[387190458,1758627050020,-151.0,0.00019178,2]
[387190459,1758627050030,-480.0,0.00019178,2]
[387190460,1758627050040,-151.0,0.00019178,2]
[387190461,1758627050050,-501.45038057,0.00019178,2]
[387190462,1758627050060,-151.0,0.00019178,2]
[387190463,1758627050069,-151.0,0.00019178,2]
[387190464,1758627050079,-480.0,0.00019178,2]
[387190465,1758627050090,-151.0,0.00019178,2]
[387190466,1758627050100,-151.0,0.00019178,2]
[387190467,1758627050110,-151.0,0.00019178,2]
[387190468,1758627050120,-151.0,0.00019178,2]
[387190469,1758627050130,-151.0,0.00019178,2]
[387190470,1758627050141,-151.0,0.00019178,2]
[387190471,1758627050151,-151.0,0.00019178,2]
[387190472,1758627050161,-151.0,0.00019178,2]
[387190473,1758627050171,-151.0,0.00019178,2]
[387190474,1758627050181,-480.0,0.00019178,2]
[387190475,1758627050190,-481.04,0.00019178,2]
[387190476,1758627050200,-151.0,0.00019178,2]
[387190477,1758627050209,-151.0,0.00019178,2]
[387190478,1758627050221,-480.0,0.00019178,2]
[387190479,1758627050230,-480.0,0.00019178,2]
[387190480,1758627050241,-745.97,0.00019178,2]
[387190481,1758627050251,-480.0,0.00019178,2]
[387190482,1758627050261,-480.0,0.00019178,2]
[387190483,1758627050270,-500.0,0.00019178,2]
[387190484,1758627050280,-5000.0,0.00019178,2]
[387190485,1758627050290,-5000.0,0.00019178,2]
[387190486,1758627050299,-5000.0,0.00019178,2]
[387190487,1758627050309,-526.53578144,0.00019178,2]
[387190488,1758627050319,-635.0,0.00019198,2]
[387190489,1758627050328,-2159.0,0.00019198,2]
[387190490,1758627050338,-6277.20157782,0.00019198,2]
[387190491,1758627050348,-585.9861618,0.000192,2]
[387190492,1758627050358,-585.9861618,0.000192,2]
[387190493,1758627050367,-151.0,0.000192,2]
[387190494,1758627050376,-151.0,0.000192,2]
[387190495,1758627050385,-649.0,0.000192,2]
[387190496,1758627050395,-513.304917,0.000192,2]
[387190497,1758627050404,-513.304917,0.000192,2]
[387190498,1758627050414,-151.0,0.000192,2]
[387190499,1758627050424,-513.304917,0.000192,2]
[387190500,1758627050434,-154.302102,0.000192,2]
[387190501,1758627050444,-513.304917,0.000192,2]
[387190502,1758627050454,-151.0,0.000192,2]
[387190503,1758627050463,-151.0,0.000192,2]
[387190504,1758627050476,-151.0,0.000192,2]
[387190505,1758627050486,-168.0,0.00019219,2]
[387190506,1758627050496,-1642.27144192,0.00019235,2]
[387190507,1758627050506,-151.0,0.00019235,2]
[387190508,1758627050515,-151.0,0.00019235,2]
[387190509,1758627050525,-151.0,0.00019244,2]
[387190510,1758627050534,-262.764935,0.00019244,2]
[387190511,1758627050543,-151.0,0.00019244,2]
[387190512,1758627050553,-212.453962,0.00019244,2]
[387190513,1758627050563,-328.0,0.00019244,2]
[387190514,1758627050573,-328.0,0.00019244,2]
[387190515,1758627050582,-328.0,0.00019244,2]
[387190516,1758627050592,-328.0,0.00019244,2]
[387190517,1758627050601,-328.0,0.00019244,2]
[387190518,1758627050611,-328.0,0.00019244,2]
[387190519,1758627050620,-328.0,0.00019244,2]
[387190520,1758627050630,-328.0,0.00019244,2]
[387190521,1758627050640,-328.0,0.00019244,2]
[387190522,1758627050650,-328.0,0.00019244,2]
[387190523,1758627050659,-471.07651104,0.00019244,2]
[387190524,1758627050669,-500.0,0.00019264,2]
[387190525,1758627050678,-168.0,0.00019291,2]
[387190526,1758627050688,-874.8700678,0.000193,2]
[387190527,1758627050698,-296.6276561,0.000193,2]
[387190528,1758627050707,-7327.14415134,0.0001932,2]
[387190529,1758627050716,-215.163,0.00019323,2]
[387190530,1758627050728,-227.049,0.00019323,2]
[387190531,1758627050738,-250.0,0.00019323,2]
[387190532,1758627050747,-262.863,0.00019323,2]
[387190533,1758627050756,-292.671,0.00019323,2]
[387190534,1758627050766,-509.13183978,0.00019338,2]
[387190535,1758627050776,-500.0,0.00019352,2]
[387190536,1758627050785,-585.9861618,0.000194,2]
[387190537,1758627050795,-208.9850522,0.000194,2]
[387190538,1758627050804,-159.6432,0.000194,2]
[387190539,1758627050814,-304.1390926,0.000194,2]
[387190540,1758627050823,-605.50154492,0.000194,2]
[387190541,1758627050832,-175.0,0.00019402,2]
[387190542,1758627050842,-153.37485388,0.00019451,2]
[387190543,1758627050854,-500.0,0.00019451,2]
[387190544,1758627050864,-253.86364638,0.00019451,2]
[387190545,1758627050873,-151.0,0.00019451,2]
[387190546,1758627050882,-615.70177796,0.00019452,2]
[387190547,1758627050893,-480.0,0.00019452,2]
[387190548,1758627050908,-480.0,0.00019452,2]
[387190549,1758627050917,-480.0,0.00019452,2]
[387190550,1758627050926,-486.60595937,0.00019452,2]
[387190551,1758627050935,-500.41549574,0.00019452,2]
[387190552,1758627050945,-155.15130577,0.00019452,2]
[387190553,1758627050966,-257.48539607,0.00019452,2]
[387190554,1758627051064,-348.37536768,0.00019452,2]
[387190555,1758627051073,-480.0,0.00019452,2]
[387190556,1758627051083,-480.0,0.00019452,2]
[387190557,1758627051092,-522.99871593,0.00019452,2]
[387190558,1758627051101,-491.22287459,0.00019452,2]
[387190559,1758627051111,-492.38334792,0.00019452,2]
[387190560,1758627051121,-528.91727054,0.00019452,2]
[387190561,1758627051130,-443.24393021,0.00019452,2]
[387190562,1758627051139,-480.0,0.00019452,2]
[387190563,1758627051149,-535.76488671,0.00019452,2]
[387190564,1758627051158,-480.0,0.00019452,2]
[387190565,1758627051167,-480.0,0.00019452,2]
[387190566,1758627051175,-480.66797613,0.00019452,2]
[387190567,1758627051185,-487.8373923,0.00019452,2]
[387190568,1758627051193,-480.0,0.00019452,2]
[387190569,1758627051202,-719.21,0.00019452,2]
[387190570,1758627051211,-480.0,0.00019452,2]
[387190571,1758627051221,-480.0,0.00019452,2]
[387190572,1758627051231,-405.78890959,0.00019452,2]
[387190573,1758627051240,-480.0,0.00019452,2]
[387190574,1758627051249,-480.0,0.00019452,2]
[387190575,1758627051258,-480.0,0.00019452,2]
[387190576,1758627051267,-480.0,0.00019452,2]
[387190577,1758627051276,-480.0,0.00019452,2]
[387190578,1758627051285,-420.24981717,0.00019452,2]
[387190579,1758627051295,-480.0,0.00019452,2]
[387190580,1758627051304,-480.0,0.00019452,2]
[387190581,1758627051313,-480.0,0.00019452,2]
[387190582,1758627051323,-480.0,0.00019452,2]
[387190583,1758627051332,-480.0,0.00019452,2]
[387190584,1758627051341,-413.50501345,0.00019452,2]
[387190586,1758627102765,-194.09381965,0.00018134,2]
[387190587,1758627106098,-179.9640072,0.00018134,2]
[387190588,1758627108525,-187.55991962,0.00018134,2]
[387190590,1758627110570,-438.90918461,0.00018134,2]
[387190591,1758627112153,-463.29237557,0.00018134,2]
[387190592,1758627114134,-204.25661415,0.00018134,2]
[387190593,1758627116837,-169.45878191,0.00018134,2]
[387190594,1758627119985,-12.63392329,0.00018134,2]
[387190596,1758627159442,-152.83424318,0.0001804,2]
[387190597,1758627162612,-357.87296188,0.0001804,2]
[387190598,1758627164122,-247.08320992,0.0001804,2]
[387190599,1758627167818,-263.95162424,0.0001804,2]
[387190600,1758627169869,-158.014407,0.0001804,2]
[387190601,1758627173584,-500.0,0.0001804,2]
[387190602,1758627176374,-193.79842369,0.0001804,2]
[387190603,1758627180264,-219.56178773,0.0001804,2]
[387190604,1758627186358,-439.12357545,0.0001804,2]
[387190605,1758627190664,-302.96464219,0.0001804,2]
[387190606,1758627195553,-336.23005896,0.0001804,2]
[387190607,1758627202367,-478.20213253,0.0001804,2]
[387190608,1758627206208,-170.28500723,0.0001804,2]
[387190609,1758627209458,-295.50972947,0.0001804,2]
[387190619,1758627218911,-295.84484268,0.0001804,2]
[387190620,1758627222141,-196.23003166,0.0001804,2]
[387190621,1758627225140,-314.3295498,0.0001804,2]
[387190622,1758627225538,930.1180468,0.00017949,2]
[387190623,1758627225561,69.8819532,0.00017949,2]
[387190624,1758627230635,748.9816689,0.00017965,2]
[387190625,1758627234721,-288.87293284,0.0001804,2]
[387190626,1758627238412,-162.1292252,0.0001804,2]
[387190627,1758627240029,-203.0297112,0.0001804,2]
[387190628,1758627245344,-302.71723195,0.0001804,2]
[387190632,1758627251853,-157.46915521,0.0001804,2]
[387190633,1758627254609,-526.5432753,0.0001804,2]
[387190634,1758627256773,500.0,0.00018,2]
[387190635,1758627263086,-187.12364866,0.0001804,2]
[387190636,1758627266835,-256.91440648,0.0001804,2]
[387190637,1758627267505,-598.42091725,0.0001804,2]
[387190638,1758627272135,500.0,0.00018,2]
[387190639,1758627287630,500.0,0.00018,2]
[387190640,1758627293790,9500.01,0.00017946,2]
[387190641,1758627293814,10000.01,0.00017946,2]
[387190642,1758627293836,10000.01,0.00017946,2]
[387190643,1758627293861,10000.01,0.00017946,2]
[387190644,1758627293885,7146.4390442,0.00017946,2]
[387190653,1758627335975,200.0,0.00029274,120]
[387190654,1758627347267,200.0,0.00029274,120]
[387190655,1758627362907,173.75909516,0.00017986,2]
[387190656,1758627366218,153.01278888,0.00017986,2]
[387190657,1758627375620,206.0,0.00029274,120]
[387190661,1758627422586,173.75909515,0.00017986,2]
[387190662,1758627423409,500.0,0.00018,2]
[387190663,1758627424904,153.01278887,0.00017986,2]
[387190665,1758627480521,211.18,0.00015485,2]
[387190666,1758627513000,1762.351334,0.00017546,2]
[387190667,1758627513512,1960.354043,0.00017639,2]
[387190668,1758627513915,1263.211088,0.00017734,2]
[387190669,1758627514385,968.16267154,0.00017833,2]
[387190670,1758627517163,265.4919,0.00017771,2]
[387190671,1758627552938,2415.7151954,0.00017701,2]
[387190672,1758627552959,529.3353634,0.00017701,2]
[387190673,1758627572768,-785.4615991,0.00018089,2]
[387190674,1758627572798,-873.7093403,0.00018184,2]
[387190675,1758627572826,-484.08133577,0.00018208,2]
[387190676,1758627572856,-563.0,0.00018282,2]
[387190677,1758627572887,-563.0,0.00018384,2]
[387190678,1758627572914,-300.0,0.00018772,2]
[387190679,1758627572944,-300.0,0.00018772,2]
[387190680,1758627572974,-1061.50544966,0.00018772,2]
[387190682,1758627582648,-138.49455034,0.00018772,2]
[387190683,1758627582677,-300.0,0.00018772,2]
[387190684,1758627602682,-300.0,0.00018772,2]
[387190685,1758627602809,-300.0,0.00018772,2]
[387190686,1758627602838,-300.0,0.00018772,2]
[387190687,1758627612690,-1200.0,0.00018772,2]
[387190689,1758627644524,-159.6,0.0001804,2]
[387190690,1758627651314,-187.1839781,0.0001804,2]
[387190691,1758627652731,-179.7592972,0.0001804,2]
[387190692,1758627652856,-5213.78386643,0.00018773,2]
[387190693,1758627662474,155.0,0.00027397,120]
[387190694,1758627665771,500.0,0.00018,2]
[387190695,1758627670138,585.0084204,0.00017993,2]
[387190696,1758627686828,500.0,0.00018,2]
[387190698,1758627795581,204.4955222,0.00017989,2]
[387190700,1758627904363,153.09241858,0.00017992,2]
[387190720,1758628002863,1032.922686,0.0001798,2]
[387190723,1758628081139,666.0,0.00017996,2]
[387190728,1758628213531,-290.5713554,0.00018003,2]
[387190729,1758628213945,-4821.06182067,0.00018003,2]
[387190730,1758628222307,-382.61296381,0.00018003,2]
[387190731,1758628223816,-4617.38703619,0.00018003,2]
[387190732,1758628227213,-154.13088673,0.00018003,2]
[387190733,1758628229967,-152.11995577,0.00018003,2]
[387190747,1758628232634,-1576.35010746,0.00018003,2]
[387190748,1758628232645,-358.95344586,0.00018003,2]
[387190749,1758628232687,-947.99323754,0.00018003,2]
[387190901,1758628235028,-375.12200011,0.00018003,2]
[387190902,1758628237738,-306.46508034,0.00018003,2]
[387190903,1758628238479,-1128.86528619,0.00018003,2]
[387190904,1758628238489,-1616.78573173,0.00018773,2]
[387190905,1758628238534,-538.6149541,0.00018773,2]
[387190906,1758628238693,-832.9999536,0.00018773,2]
[387190977,1758628240640,-3229.76503914,0.00018773,2]
[387190979,1758628240650,-492.14373848,0.00018868,2]
[387190981,1758628240659,-745.26026343,0.00018889,2]
[387190982,1758628240669,-300.0,0.00018976,2]
[387190983,1758628240679,-1076.79030823,0.00018977,2]
[387191000,1758628246523,-328.09582566,0.00018868,2]
[387191001,1758628246533,-123.20969177,0.00018977,2]
[387191002,1758628246543,-13756.66324246,0.00018978,2]
[387191003,1758628246554,-12090.31242412,0.00018978,2]
[387191004,1758628246563,-500.0,0.00018989,2]
[387191005,1758628246572,-500.0,0.00018989,2]
[387191006,1758628246582,-500.0,0.00018989,2]
[387191007,1758628246592,-500.0,0.00018989,2]
[387191008,1758628246601,-500.0,0.00018989,2]
[387191009,1758628246611,-300.8426081,0.00018989,2]
[387191010,1758628246620,-269.63405028,0.00018989,2]
[387191011,1758628246629,-160.05158116,0.00018989,2]
[387191012,1758628246639,-184.06538026,0.00018989,2]
[387191013,1758628246648,-500.0,0.00018989,2]
[387191014,1758628246657,-500.0,0.00018989,2]
[387191015,1758628246666,-500.0,0.00018989,2]
[387191016,1758628246675,-500.0,0.00018989,2]
[387191017,1758628246684,-29.46010566,0.00018989,2]
[387191018,1758628246695,-470.53989434,0.00018989,2]
[387191019,1758628246705,-500.0,0.00018989,2]
[387191020,1758628246713,-500.0,0.00018989,2]
[387191021,1758628246723,-39179.56326493,0.0001899,2]
[387191022,1758628246732,-563.0,0.00019028,2]
[387191023,1758628246741,-155.0,0.00019077,2]
[387191024,1758628246749,-386.85,0.00019078,2]
[387191025,1758628246758,-305.4791039,0.00019078,2]
[387191026,1758628246767,-1331.17037918,0.00019152,2]
[387191027,1758628246778,-376.68,0.00019152,2]
[387191028,1758628246789,-2113.18657807,0.00019152,2]
[387191029,1758628246797,-978.0,0.00019155,2]
[387191030,1758628246807,-996.37840273,0.00019155,2]
[387191031,1758628246818,-795.61375639,0.00019155,2]
[387191032,1758628246829,-367.00784088,0.00019155,2]
[387191033,1758628246839,-635.0,0.00019155,2]
[387191034,1758628246848,-150.0,0.00019155,2]
[387191035,1758628246857,-410.0,0.00019155,2]
[387191036,1758628246866,-417.975,0.00019155,2]
[387191037,1758628246875,-2584.1192545,0.00019155,2]
[387191038,1758628246886,-1939.45000001,0.00019155,2]
[387191039,1758628246897,-60.43074549,0.00019155,2]
[387191040,1758628246906,-181.08010149,0.00019166,2]
[387191041,1758628246915,-563.0,0.00019167,2]
[387191042,1758628246924,-369.66,0.00019168,3]
[387191043,1758628246933,-184.83,0.00019168,3]
[387191044,1758628246943,-554.49,0.00019168,3]
[387191045,1758628246952,-172.28703193,0.00019177,2]
[387191046,1758628246961,-209.05290719,0.00019177,2]
[387191047,1758628246970,-500.0,0.00019177,2]
[387191048,1758628246979,-500.0,0.00019177,2]
[387191049,1758628246988,-500.0,0.00019177,2]
[387191050,1758628246998,-500.0,0.00019177,2]
[387191051,1758628247007,-500.0,0.00019177,2]
[387191052,1758628247016,-500.0,0.00019177,2]
[387191053,1758628247025,-500.0,0.00019177,2]
[387191054,1758628247034,-500.0,0.00019177,2]
[387191055,1758628247045,-500.0,0.00019177,2]
[387191056,1758628247054,-500.0,0.00019177,2]
[387191057,1758628247063,-260.21081265,0.00019177,2]
[387191058,1758628247072,-500.0,0.00019177,2]
[387191059,1758628247082,-500.0,0.00019177,2]
[387191060,1758628247091,-500.0,0.00019177,2]
[387191061,1758628247100,-33.55754727,0.00019177,2]
[387191062,1758628247116,-466.44245273,0.00019177,2]
[387191063,1758628247125,-268.88593732,0.00019177,2]
[387191066,1758628554777,681.5870805,0.00017795,2]
[387191067,1758628656823,273.7755518,0.00017827,2]
[387191068,1758628681848,500.0,0.000178,2]
[387191069,1758628701854,500.0,0.000178,2]
[387191070,1758628716802,500.0,0.000178,2]
[387191071,1758628717376,-168.0,0.00018017,2]
[387191072,1758628717466,17.11371185,0.00017476,2]
[387191073,1758628717494,151.84317015,0.00017476,2]
[387191074,1758628717973,259.147054,0.000176,2]
[387191075,1758628719357,671.80474712,0.00017626,2]
[387191076,1758628719604,500.0,0.00018,2]
[387191077,1758628722057,-168.956882,0.00018001,2]
[387191078,1758628722078,-16.15682985,0.00018004,2]
[387191079,1758628726333,-152.80005315,0.00018004,2]
[387191080,1758628730456,500.0,0.000178,2]
[387191081,1758628735158,500.0,0.00018,2]
[387191082,1758628787382,491.1568206,0.00018,2]
[387191083,1758628810571,5136.53645275,0.00017995,2]
[387191084,1758628810873,3872.31672665,0.00017995,2]
[387191085,1758628810897,1127.68327335,0.00017995,2]
[387191086,1758628811158,5000.0,0.00017995,2]
[387191087,1758628811525,3872.32672665,0.00017995,2]
[387191088,1758628811548,1127.67327335,0.00017995,2]
[387191089,1758628811823,5000.0,0.00017995,2]
[387191092,1758628845566,179.74090438,0.00029282,60]
[387191093,1758628996279,306.2508425,0.00017891,2]
[387191094,1758629011515,516.461343,0.00017891,2]
[387191096,1758629092028,290.5713554,0.00017885,2]
[387191196,1758629438731,-257.679382,0.00018144,2]
[387191198,1758629438740,-1000.0,0.00018171,2]
[387191199,1758629438750,-478.0,0.00018208,2]
[387191200,1758629438760,-168.0,0.00018558,2]
[387191201,1758629438769,-168.0,0.00018561,2]
[387191203,1758629438779,-168.0,0.00018566,2]
[387191204,1758629438788,-28.67877329,0.00018594,2]
[387191205,1758629438889,-516.32122671,0.00018594,2]
[387191206,1758629438899,-545.0,0.00018616,2]
[387191207,1758629438909,-703.0347532,0.00018868,2]
[387191208,1758629438918,-745.26026343,0.00018977,2]
[387191209,1758629438928,-300.0,0.00018998,2]
[387191210,1758629438939,-300.0,0.00018998,2]
[387191211,1758629438948,-257.0,0.00018998,2]
[387191212,1758629438957,-1200.0,0.00018998,2]
[387191213,1758629438967,-1200.0,0.00018999,2]
[387191214,1758629438977,-390.2520609,0.00019,2]
[387191215,1758629438987,-390.2520609,0.00019,2]
[387191216,1758629438996,-390.2520609,0.00019,2]
[387191217,1758629439005,-390.2520609,0.00019,2]
[387191218,1758629439015,-390.2520609,0.00019,2]
[387191219,1758629439025,-390.2520609,0.00019,2]
[387191220,1758629439035,-390.2520609,0.00019,2]
[387191221,1758629439044,-247.4657882,0.00019,2]
[387191222,1758629439053,-435.2011237,0.00019,2]
[387191223,1758629439063,-585.5584834,0.00019,2]
[387191224,1758629439073,-978.0,0.00019037,2]
[387191225,1758629439083,-2159.0,0.00019037,2]
[387191226,1758629439092,-635.0,0.00019037,2]
[387191227,1758629439101,-795.6630737,0.00019051,2]
[387191228,1758629439111,-3601.246878,0.00019051,2]
[387191229,1758629439121,-173.4144864,0.00019051,2]
[387191230,1758629439130,-365.2988649,0.00019051,2]
[387191231,1758629439139,-1000.0,0.00019067,2]
[387191232,1758629439149,-514.9642712,0.00019067,2]
[387191233,1758629439158,-250.0,0.00019067,2]
[387191234,1758629439168,-181.08010149,0.00019067,2]
[387191235,1758629439182,-492.78,0.00019073,2]
[387191236,1758629439192,-345.05688194,0.00019073,2]
[387191237,1758629439201,-500.0,0.00019077,2]
[387191238,1758629439211,-500.0,0.00019077,2]
[387191239,1758629439221,-352.85947068,0.00019077,2]
[387191240,1758629439230,-500.0,0.00019077,2]
[387191241,1758629439240,-351.11684235,0.00019077,2]
[387191242,1758629439251,-500.0,0.00019077,2]
[387191243,1758629439261,-500.0,0.00019077,2]